Cogmind - Beta 10.2 *** ADVENTURER MODE // 2021.09.26 @ 15:36:12 Player: juauke Result: Core destroyed Performance ------------- Evolutions (0) 0 Regions Visited (1) 200 Robots Destroyed (11) 55 Value Destroyed (143) 143 Prototype IDs (0) 0 Alien Tech Used (0) 0 Bonus (0) 0 TOTAL SCORE: 398 Bonus ------- None Cogmind --------- Core Integrity 0/250 Matter 300/300 Energy 100/100 System Corruption 0% Temperature Cool (0) Movement Core (50) Location -10/Materials Parts ------- > --- POWER (1) -------- (None) > --- PROPULSION (2) --- (None) > --- UTILITY (2) ------ Targeting Computer > --- WEAPON (2) ------- (None) > --- INVENTORY (4) ---- Structural Scanner Sensor Array Improved Terrain Scanner Peak State ------------ > --- POWER ------------ Light Ion Engine > --- PROPULSION ------- Wheel Wheel > --- UTILITY ---------- Improved Terrain Scanner Improved Terrain Scanner > --- WEAPON ----------- EM Pulse Gun Small Laser > --- INVENTORY -------- Mining Laser [Rating: 9] Favorites ----------- Power Light Ion Engine Engine Light Ion Engine Propulsion Wheel Leg Aluminum Leg Wheel Wheel Utility Targeting Computer Device Sensor Array Processor Targeting Computer Weapon EM Pulse Gun Energy Gun EM Pulse Gun Ballistic Gun Assault Rifle Special Weapon Mining Laser Build | -11 -10 ------- Run | Scr Mat Slots Evolved . | . . Power . | . . Propulsion . | . . Utility . | . . Weapon . | . . Parts Attached 21 | 13 8 Power 1 | 1 . Engine 1 | 1 . Core . | . . Reactor . | . . Propulsion 4 | 4 . Treads . | . . Leg 2 | 2 . Wheel 2 | 2 . Hover . | . . Flight . | . . Utility 6 | 2 4 Device 5 | 2 3 Storage . | . . Processor 1 | . 1 Hackware . | . . Protection . | . . Artifact . | . . Weapon 10 | 6 4 Energy Gun 7 | 4 3 Energy Cannon . | . . Ballistic Gun 1 | 1 . Ballistic Cannon . | . . Launcher . | . . Special Weapon 2 | 1 1 Impact Weapon . | . . Slashing Weapon . | . . Piercing Weapon . | . . Special Melee Weapon . | . . Unidentified Prototypes . | . . Parts Lost 9 | . 9 Power 1 | . 1 Propulsion 2 | . 2 Utility 1 | . 1 Weapon 5 | . 5 Highest Loss Streak 5 | . 5 Average Slot Usage (%) 80 | . 80 Engine 9 | . 9 Wheel 26 | . 26 Device 11 | . 11 Processor 12 | . 12 Energy Gun 18 | . 18 Naked Turns . | . . Heaviest Build 8 | 8 8 Greatest Support 20 | 20 20 Greatest Overweight (x) . | . . Average Overweight (x) . | . . Largest Inventory Capacity 4 | 4 4 Average Capacity 4 | 4 4 Most Carried 4 | 4 4 Average Carried 3 | 2 3 Final Capacity 4 | 4 4 Final Carried 3 | 1 3 Class Distribution -------------------- 100% | Mutant Dominant Class ---------------- Mutant | -10/Materials Resources | -11 -10 ----------- Run | Scr Mat Matter Collected 347 | 280 67 Remotely . | . . Salvage Created 252 | 135 117 Parts 25 | 16 9 Haulers Intercepted . | . . Recyclers Shooed . | . . Parts Field Recycled . | . . Retrieved Matter . | . . Parts Self-Destructed . | . . Prevented . | . . Kills | -11 -10 ------- Run | Scr Mat Combat Hostiles Destroyed 5 | 1 4 Guns 5 | 1 4 Classes Destroyed 5 | 3 2 Worker 1 | 1 . Tunneler 4 | 4 . Watcher 1 | . 1 Swarmer 3 | . 3 Grunt 2 | 1 1 Best Kill Streak 6 | 6 4 Combat Bots Only 3 | 1 3 Max Kills in Single Turn 1 | 1 1 Gunslinging . | . . Exploded . | . . Melee . | . . Uniques/NPCs Destroyed . | . . Combat | -11 -10 -------- Run | Scr Mat Damage Taken 647 | . 647 Core 252 | . 252 Absorbed by Shields . | . . Core Remaining (%) 100 | 100 . Volleys Fired 32 | 16 16 Largest 2 | 2 2 Hottest 140 | 140 100 Shots Fired 55 | 27 28 Gun 48 | 21 27 Cannon . | . . Launcher . | . . Special 7 | 6 1 Kinetic . | . . Thermal 29 | 16 13 Explosive . | . . Electromagnetic 26 | 11 15 Robot Hit Streak 10 | 6 10 Robot Miss Streak 1 | 1 1 Penetration Max . | . . Secondary Targets 1 | . 1 Max Gunslinging Chain 1 | . 1 Shots Hit Robots 33 | 11 22 Core Hits 19 | 7 12 Critical Hits . | . . Critical Kills . | . . Critical Parts Destroyed . | . . Melee Attacks . | . . Impact . | . . Slashing . | . . Piercing . | . . Sneak Attacks . | . . Combat Hostiles . | . . Follow-up Attacks . | . . Damage Inflicted 486 | 141 345 Guns 420 | 141 279 Cannons . | . . Explosions . | . . Melee . | . . Ramming 66 | . 66 Kinetic . | . . Thermal 132 | 32 100 Explosive . | . . Electromagnetic 288 | 109 179 Impact . | . . Slashing . | . . Piercing . | . . Highest Corruption . | . . Average Corruption . | . . Corruption Purged . | . . Overload Shots . | . . Overflow Damage . | . . Projectiles . | . . Explosions . | . . Melee . | . . Knockbacks 1 | . 1 Impact 1 | . 1 Kinetic . | . . Secondary . | . . Self-Inflicted Damage 27 | . 27 Shots . | . . Rammed 25 | . 25 Targets Rammed 25 | . 25 Kicked . | . . Crushed . | . . Highest Temperature 273 | 92 273 Average Temperature 76 | 37 120 Received Heat Transfer 414 | . 414 Siege Activations . | . . Robots Corrupted . | . . Combat Hostiles . | . . Parts Fried 1 | 1 . Impact Corruptions . | . . Robots Melted . | . . Combat Hostiles . | . . Parts Melted 1 | . 1 Heat Transferred 371 | 75 296 Parts Sabotaged . | . . Parts Stolen . | . . Parts Stripped . | . . Power Chain Reactions . | . . Missiles Intercepted . | . . Alert | -11 -10 ------- Run | Scr Mat Peak Influence 129 | 45 129 Initial 25 | . 25 Average 59 | 22 83 Maximum Alert Level . | . . Low Security (%) 100 | 100 100 Level 1 . | . . Level 2 . | . . Level 3 . | . . Level 4 . | . . Level 5 . | . . High Security . | . . Max Security . | . . Squads Dispatched . | . . Investigation . | . . Extermination . | . . Reinforcement . | . . Assault . | . . Garrison . | . . Intercept . | . . Construction Impeded . | . . Haulers Reinforced . | . . Stealth | -11 -10 --------- Run | Scr Mat Distress Signals . | . . Communications Jammed . | . . Distress Signals . | . . Times Spotted 8 | 1 7 Peak Tracking Total 3 | 1 3 Tactical Retreats 1 | . 1 Traps | -11 -10 ------- Run | Scr Mat Traps Triggered . | . . Indirectly . | . . Trap Hack Attempts . | . . Triggered . | . . Disarmed . | . . Reprogrammed . | . . Reused . | . . Traps Extracted . | . . Installed . | . . Triggered . | . . Machines | -11 -10 ---------- Run | Scr Mat Machines Disabled . | . . Max in Single Turn . | . . Machines Sabotaged . | . . Garrisons Compromised . | . . Overloaded Fab Kills . | . . Fab Network Shutdowns . | . . Hacking | -11 -10 --------- Run | Scr Mat Machines Accessed 1 | . 1 Terminals 1 | . 1 Fabricators . | . . Repair Stations . | . . Recycling Units . | . . Scanalyzers . | . . Garrison Access . | . . Total Hacks 6 | . 6 Successful 3 | . 3 Failed 3 | . 3 Catastrophic 1 | . 1 Database Lockouts . | . . Manual 8 | . 8 Terminals 6 | . 6 Fabricators . | . . Repair Stations . | . . Recycling Units . | . . Scanalyzers . | . . Garrison Access . | . . Terminal Hacks 3 | . 3 Record 1 | . 1 Part Schematic 1 | . 1 Reprogram Traps 1 | . 1 Fabricator Hacks . | . . Repair Station Hacks . | . . Recycling Unit Hacks . | . . Scanalyzer . | . . Garrison Access Hacks . | . . Unauthorized Hacks . | . . Terminals . | . . Fabricators . | . . Repair Stations . | . . Recycling Units . | . . Scanalyzers . | . . Garrison Access . | . . Data Cores Recovered . | . . Used . | . . Hacking Detections 1 | . 1 Full Trace Events 1 | . 1 Feedback Events . | . . Feedback Blocked . | . . Robot Schematics Acquired . | . . Robots Built . | . . Matter . | . . Time . | . . Total Robot Build Rating . | . . Part Schematics Acquired 1 | . 1 Parts Built . | . . Matter . | . . Time . | . . Total Part Build Rating . | . . Parts Repaired . | . . Time . | . . Parts Recycled . | . . Recycled Matter . | . . Retrieved Matter . | . . Retrieved Components . | . . Parts Scanalyzed . | . . Part Schematics Acquired . | . . Parts Damaged . | . . Bothacking | -11 -10 ------------ Run | Scr Mat Used RIF Installer . | . . Robots Hacked . | . . Non-combat . | . . Combat . | . . Robot Hacks Applied . | . . Relay Couplers Released . | . . Robots Rewired . | . . Allies Hacked . | . . Hacks Repelled . | . . Allies | -11 -10 -------- Run | Scr Mat Total Allies . | . . Largest Group . | . . Highest-Rated Group . | . . Highest-Rated Ally . | . . Total Orders . | . . Ally Attacks . | . . Total Damage . | . . Kills . | . . Allies Corrupted . | . . Allies Melted . | . . Intel | -11 -10 ------- Run | Scr Mat Robot Analysis Total . | . . Derelict Logs Recovered . | . . Drone Launches . | . . Drone Recoveries . | . . Exploration | -11 -10 ------------- Run | Scr Mat Turns Passed 514 | 207 307 Spaces Moved 423 | 150 273 Core 34 | 27 7 Treads . | . . Legs 2 | 2 . Wheels 387 | 121 266 Hover . | . . Flight . | . . Fastest Speed 50 | 50 50 Average Speed 77 | 75 79 Slowest Speed 120 | 120 80 Overloaded Moves . | . . Propulsion Burnouts . | . . Robots Hopped . | . . Cave-ins Triggered . | . . Exploration Rate (%) 16 | 6 27 Regions Visited 1 Branch Regions . Pre-discovered Areas . | . . Known Exits Taken . | . . Unknown Exits Taken 1 | 1 . Scrap Searched . | . . Spaces Dug 6 | 6 . Terrain Destroyed 7 | 6 1 Melee . | . . Projectile 7 | 6 1 AOE . | . . Terrain Rammed . | . . Walls Destroyed . | . . Machines Disabled . | . . Actions | -11 -10 --------- Run | Scr Mat Total 542 | 208 334 Wait 1 | 1 . Move 422 | 149 273 Hop . | . . Pick Up 27 | 18 9 Fast Attach . | . . Attach 15 | 9 6 Detach 1 | 1 . Swap 6 | 4 2 Drop 14 | 10 4 Fire 32 | 16 16 Melee . | . . Ram 24 | . 24 Kick . | . . Crush . | . . Escape Stasis . | . . Rewire . | . . Trap . | . . Miscellaneous . | . . Route ------- -11/Scrapyard -10/Materials (discovered 1 exit: [*Min]) History --------- Turn | Location | Event 2 | -11/Scrapyard | Met Revision 17 89 | -11/Scrapyard | Discovered new exit (range 8) 208 | -11/Scrapyard | Entered Materials 301 | -10/Materials | Build established: Mutant 373 | -10/Materials | Discovered new exit (range 12) 460 | -10/Materials | Lost 4 parts (1p1u2w) 494 | -10/Materials | Core integrity fell below 50% 508 | -10/Materials | Core integrity fell below 20% 515 | -10/Materials | Core destroyed Last Messages --------------- Mining Laser destroyed. Wheel destroyed. Slammed into G-34 Mercenary. Slammed into G-47 Trooper. G-47 Trooper knocked back. Slammed into G-47 Trooper. Destabilizing: Core damaged (-10). Slammed into G-47 Trooper. Targeting Computer permanently disabled. Destabilizing: Short circuit. Slammed into G-47 Trooper. Destabilizing: System interference. EM Shotgun temporarily disabled. Slammed into G-47 Trooper. EM Shotgun destroyed. Slammed into G-47 Trooper. EM Shotgun destroyed. Wheel destroyed. Slammed into G-34 Mercenary. [Achievement: First Step to Greatness] Map ----- +----------------------------------------------------+ | ??????????????????????????????????????????? | | ??????????????????????????????????????????? | | ??????????????????????????????????????????? | | ??????????????????????????????????????????? | | ??????????????????????????????????????????? | | ??????????????????????????????????????????? | | ??????????????????????????????????????????? | | ??????????????????????????????????????????? | | ??????????????????????????????????????????? | | ??????????????????????????????????????????? | | ??????????????????????????????????????????? | | ??????????????????????????????????????????? | | ????????????######????????????????????????? | | ????#####??##!!!!##???????????????????????? | | ????#// #??#! !#???????????????????????? | | ????#// #??#! !#???????????????????????? | | ????#!! #### ##???????????????????????? | | ????#!! ###############??????????? | | ????#[ + #??????????? | | ????#[ u#"#### """ #??????????? | | ????##### ##+#/####?# """"" #??????????? | | ????????# ## %%%%%#?# """"" #??????????? | | ????????# ## """%#?# """"" #??????????? | | ????????# ## """%#?# """ #??????????? | | ????????# ## """%#?# #??????????? | | ????????# ## g@%#?# #?#########? | | ???????## ## %%%g%#?# #?#"""""""#? | | ????#??# ########?####+#####?#" |"| "#? | | ????# ## # #?????# #####" "## | | ????# #?????# | | ????#### # ##?????# < | | ???????# ####??????# | | ???????###=###?????????# ##### ## | | ?????????# #???????????## ##???#########? | | ??????#### #????????????# #?????????????? | | ??????# [#????????????+ +?????????????? | | ??????# *##?????"??????# # ????????????? | | #??#??# #?????????????# # ???????????? | | ???#??# #?????????????# #? ??????????? | | ####### #?????????????# #?#+#?????????? | | # # #??????#??????# #?????????????? | | # # ######????????# #?????????????? | | # ! # # !#????????# #?????????????? | | # ]# # #???????? ?????????????? | | # # # #???????? ?????????????? | | # + # #???????? ?????????????? | | # # + #???#???? ?????????????? | | # # # ""#???????? ?????????????? | | # # # T"#??????????????????????????? | | # # # ""#?#????????????????????????? | +----------------------------------------------------+ Best States ------------- Heat Dissipation 25 Energy Generation 10 Energy Capacity 125 Matter Stores 300 Matter Capacity 300 Sight Range 16 Robot Scan Range 10 Terrain Scan Range 16 Terrain Scan Density 10 Resistance: KI 20 Resistance: TH 20 Resistance: EX 20 Resistance: EM 20 Resistance: I 20 Resistance: S 20 Resistance: P 20 Evasion (%) 50 Targeting Accuracy 5 Offensive Hacking 10 Item Schematics ----------------- Seismic Analyzer | -10/Materials | Hacked Robot Schematics ------------------ None Fabricated ------------ Nothing Alien Tech Used ----------------- None Achievements -------------- Crack Shot First Step to Greatness Challenges ------------ None Game ------ Seed LinearThrusterCompressor Manual? 0 Play Time 00:27:06 Cumulative 0.8 hours Start 2021.08.10 @ 11:05:16 End 2021.09.26 @ 15:36:12 Sessions 3 Manual Loads 0 Difficulty Adventurer Special Mode None Game No. 1 Rogue 0 Adventurer 1 Explorer 0 Win Type - Total 0 Types 0/0/0/0/0/0/0/0/0 Lore% 0 Gallery% 1 Achievement% 0 Wizard Run 0 Options --------- ASCII 0 Keyboard 0 Movement Mouse Keybinds 0 Fullscreen 1 Font 12/Smallcaps Map View 83x54 Tactical HUD 0 Map Filters NONE Filters NONE Steam 1 RUN: d4db3b1b-f247-4230-b4cf-ccad15347e27